Cogmind - Beta 11.1 *** ADVENTURER MODE // 2022.08.13 @ 22:47:59 Player: Nagash Result: Destroyed by G-47 Trooper with Particle Gun Performance ------------- Evolutions (2) 1000 Regions Visited (4) 800 Robots Destroyed (15) 75 Value Destroyed (477) 477 Prototype IDs (0) 0 Alien Tech Used (0) 0 Bonus (0) 0 TOTAL SCORE: 2352 Bonus ------- None Cogmind --------- Core Integrity 0/550 Matter 247/300 Energy 99/100 System Corruption 0% Temperature Cool (9) Movement Core (50) Location -8/Storage Parts ------- > --- POWER (2) -------- (None) > --- PROPULSION (4) --- (None) > --- UTILITY (3) ------ (None) > --- WEAPON (2) ------- (None) > --- INVENTORY (5) ---- Light Ion Engine Large Storage Unit Medium Matter Pod (0) Advanced Visual Processing Unit Peak State ------------ > --- POWER ------------ Ion Engine Nuclear Core > --- PROPULSION ------- Aluminum Leg Aluminum Leg Aluminum Leg Aluminum Leg > --- UTILITY ---------- Small Storage Unit Advanced Visual Processing Unit ECM Suite > --- WEAPON ----------- Light EM Pulse Cannon Rocket Launcher > --- INVENTORY -------- Light Ion Engine Large Storage Unit Medium Matter Pod Advanced Visual Processing Unit Assault Rifle Assault Rifle [Rating: 17] Favorites ----------- Power Ion Engine Engine Ion Engine Power Core Nuclear Core Propulsion Aluminum Leg Leg Aluminum Leg Wheel Wheel Utility Small Storage Unit Device ECM Suite Storage Small Storage Unit Processor Advanced Visual Processing Unit Weapon Assault Rifle Energy Cannon Light EM Pulse Cannon Ballistic Gun Assault Rifle Launcher Rocket Launcher Build | -11 -10 -9 -8 -8 ------- Run | Scr Mat Mat Mat Sto Slots Evolved 4 | . . 2 2 . Power 1 | . . . 1 . Propulsion 2 | . . 2 . . Utility 1 | . . . 1 . Weapon . | . . . . . Parts Attached 23 | 6 1 5 3 8 Power 3 | 1 . . 2 . Engine 2 | 1 . . 1 . Core 1 | . . . 1 . Reactor . | . . . . . Propulsion 9 | 2 1 4 . 2 Treads . | . . . . . Leg 6 | . . 4 . 2 Wheel 3 | 2 1 . . . Hover . | . . . . . Flight . | . . . . . Utility 3 | 1 . 1 1 . Device 1 | . . 1 . . Storage 1 | 1 . . . . Processor 1 | . . . 1 . Hackware . | . . . . . Protection . | . . . . . Artifact . | . . . . . Weapon 8 | 2 . . . 6 Energy Gun . | . . . . . Energy Cannon 1 | . . . . 1 Ballistic Gun 6 | 2 . . . 4 Ballistic Cannon . | . . . . . Launcher 1 | . . . . 1 Special Weapon . | . . . . . Impact Weapon . | . . . . . Slashing Weapon . | . . . . . Piercing Weapon . | . . . . . Special Melee Weapon . | . . . . . Unidentified Prototypes . | . . . . . Parts Lost 14 | . . . . 14 Power 1 | . . . . 1 Propulsion 6 | . . . . 6 Utility 2 | . . . . 2 Weapon 5 | . . . . 5 Highest Loss Streak 10 | . . . . 10 To Critical Strikes . | . . . . . Average Slot Usage (%) 81 | . 85 99 95 43 Engine 9 | . 14 11 13 3 Core 1 | . . . 4 3 Leg 27 | . . 43 36 15 Wheel 5 | . 28 . . . Device 6 | . . 10 9 2 Storage 9 | . 14 11 9 3 Processor 2 | . . . 4 6 Ballistic Gun 18 | . 28 22 18 3 Naked Turns 14 | . . . . 14 Heaviest Build 27 | 14 14 16 23 27 Greatest Support 40 | 26 26 40 40 40 Greatest Overweight (x) 3 | 3 . . . . Average Overweight (x) . | . . . . . Largest Inventory Capacity 8 | 8 8 8 8 8 Average Capacity 7 | 7 8 8 8 6 Most Carried 7 | 4 7 7 6 7 Average Carried 4 | 2 5 3 5 4 Final Capacity 8 | 8 8 8 8 5 Final Carried 7 | 4 7 5 6 4 Class Distribution -------------------- 100% | Mutant Dominant Class ---------------- Mutant | -10/Materials Mutant | -9/Materials Mutant | -8/Materials Mutant | -8/Storage Resources | -11 -10 -9 -8 -8 ----------- Run | Scr Mat Mat Mat Sto Matter Collected 453 | 247 47 30 . 129 Remotely . | . . . . . Salvage Created 535 | . 103 33 . 399 Parts 29 | . 5 4 . 20 Haulers Intercepted . | . . . . . Recyclers Shooed . | . . . . . Parts Field Recycled . | . . . . . Retrieved Matter . | . . . . . Parts Self-Destructed . | . . . . . Prevented . | . . . . . Kills | -11 -10 -9 -8 -8 ------- Run | Scr Mat Mat Mat Sto Combat Hostiles Destroyed 12 | . 2 2 . 8 Guns 7 | . 2 2 . 3 Cannons 1 | . . . . 1 AOE 3 | . . . . 3 Classes Destroyed 4 | . 1 1 . 2 Builder 1 | . . . . 1 Recycler 2 | . . . . 2 Swarmer 3 | . . 2 . 1 Grunt 9 | . 2 . . 7 Best Kill Streak 9 | . 2 2 . 9 Combat Bots Only 6 | . 2 2 . 6 Max Kills in Single Turn 3 | . 1 1 . 3 Gunslinging . | . . . . . Exploded 1 | . . . . 1 Melee . | . . . . . Uniques/NPCs Destroyed . | . . . . . Combat | -11 -10 -9 -8 -8 -------- Run | Scr Mat Mat Mat Sto Damage Taken 1745 | . 170 57 142 1376 Core 607 | . 57 . 24 526 Absorbed by Shields . | . . . . . Core Remaining (%) 92 | 100 77 100 . . Volleys Fired 41 | . 7 3 . 31 Largest 2 | . 2 2 . 1 Hottest 56 | . 40 40 . 56 Shots Fired 51 | . 14 6 . 31 Gun 31 | . 14 6 . 11 Cannon 15 | . . . . 15 Launcher 5 | . . . . 5 Special . | . . . . . Kinetic 31 | . 14 6 . 11 Thermal . | . . . . . Explosive 5 | . . . . 5 Electromagnetic 15 | . . . . 15 Robot Hit Streak 15 | . 7 2 . 15 Robot Miss Streak 3 | . 1 2 . 3 Penetration Max . | . . . . . Secondary Targets 2 | . 1 1 . . Max Gunslinging Chain 1 | . 1 1 . . Shots Hit Robots 38 | . 12 3 . 23 Core Hits 29 | . 5 2 . 22 Critical Kills . | . . . . . Critical Parts Destroyed . | . . . . . Critical Strikes . | . . . . . Melee Attacks . | . . . . . Impact . | . . . . . Slashing . | . . . . . Piercing . | . . . . . Sneak Attacks . | . . . . . Combat Hostiles . | . . . . . Follow-up Attacks . | . . . . . Damage Inflicted 1138 | . 159 34 1 944 Guns 309 | . 151 34 . 124 Cannons 322 | . . . . 322 Explosions 495 | . . . . 495 Melee . | . . . . . Ramming 12 | . 8 . 1 3 Kinetic 309 | . 151 34 . 124 Thermal 138 | . . . . 138 Explosive 357 | . . . . 357 Electromagnetic 322 | . . . . 322 Impact . | . . . . . Slashing . | . . . . . Piercing . | . . . . . Highest Corruption . | . . . . . Average Corruption . | . . . . . Corruption Purged . | . . . . . Corruption Blocked . | . . . . . Overload Shots . | . . . . . Overflow Damage . | . . . . . Projectiles . | . . . . . Explosions . | . . . . . Melee . | . . . . . Knockbacks . | . . . . . Impact . | . . . . . Kinetic . | . . . . . Secondary . | . . . . . Self-Inflicted Damage 55 | . 3 . . 52 Shots 2 | . . . . 2 Rammed 2 | . 2 . . . Targets Rammed 7 | . 2 . 1 4 Kicked 5 | . . . 1 4 Crushed . | . . . . . Highest Temperature 495 | . 4 . . 495 Average Temperature 260 | . 2 . . 289 Received Heat Transfer 933 | . 90 24 36 783 Effects 11 | . . . . 11 Shutdowns 3 | . . . . 3 Energy Bleed 1 | . . . . 1 Interference 2 | . . . . 2 Matter Decay 1 | . . . . 1 Damage (major) 4 | . . . . 4 Siege Activations . | . . . . . Robots Corrupted 1 | . . . . 1 Combat Hostiles 1 | . . . . 1 Parts Fried . | . . . . . Impact Corruptions . | . . . . . Robots Melted . | . . . . . Combat Hostiles . | . . . . . Parts Melted . | . . . . . Heat Transferred 150 | . . . . 150 Parts Sabotaged . | . . . . . Parts Stolen . | . . . . . Parts Stripped . | . . . . . Power Chain Reactions 2 | . . . . 2 Missiles Intercepted . | . . . . . Alert | -11 -10 -9 -8 -8 ------- Run | Scr Mat Mat Mat Sto Peak Influence 224 | . 95 144 81 224 Initial 51 | . . 34 51 28 Average 68 | . 32 54 64 146 Maximum Alert Level 1 | . . . . 1 Low Security (%) 93 | 100 100 100 100 74 Level 1 6 | . . . . 25 Level 2 . | . . . . . Level 3 . | . . . . . Level 4 . | . . . . . Level 5 . | . . . . . High Security . | . . . . . Max Security . | . . . . . Squads Dispatched 6 | . . . . 6 Investigation 1 | . . . . 1 Extermination . | . . . . . Reinforcement 3 | . . . . 3 Assault . | . . . . . Garrison 2 | . . . . 2 Intercept . | . . . . . Searches Triggered . | . . . . . Construction Impeded 1 | . . . . 1 Haulers Reinforced . | . . . . . Active Scanning Responses . | . . . . . Cargo Convoy Interrupts . | . . . . . Stealth | -11 -10 -9 -8 -8 --------- Run | Scr Mat Mat Mat Sto Distress Signals 3 | . . . . 3 Communications Jammed . | . . . . . Distress Signals . | . . . . . Times Spotted 44 | . 8 9 2 25 Peak Tracking Total 12 | . 3 4 2 12 Tactical Retreats 5 | . 1 2 . 2 Traps | -11 -10 -9 -8 -8 ------- Run | Scr Mat Mat Mat Sto Traps Triggered 2 | . . . . 2 Indirectly . | . . . . . Trap Hack Attempts . | . . . . . Triggered . | . . . . . Disarmed . | . . . . . Reprogrammed . | . . . . . Reused . | . . . . . Traps Extracted . | . . . . . Installed . | . . . . . Triggered . | . . . . . Machines | -11 -10 -9 -8 -8 ---------- Run | Scr Mat Mat Mat Sto Machines Disabled 2 | . . . . 2 Max in Single Turn 1 | . . . . 1 Machines Sabotaged . | . . . . . Garrisons Compromised . | . . . . . Overloaded Fab Kills . | . . . . . Hacking | -11 -10 -9 -8 -8 --------- Run | Scr Mat Mat Mat Sto Machines Accessed . | . . . . . Terminals . | . . . . . Fabricators . | . . . . . Repair Stations . | . . . . . Recycling Units . | . . . . . Scanalyzers . | . . . . . Garrison Access . | . . . . . Total Hacks . | . . . . . Successful . | . . . . . Failed . | . . . . . Catastrophic . | . . . . . Database Lockouts . | . . . . . Manual . | . . . . . Terminals . | . . . . . Fabricators . | . . . . . Repair Stations . | . . . . . Recycling Units . | . . . . . Scanalyzers . | . . . . . Garrison Access . | . . . . . Terminal Hacks . | . . . . . Fabricator Hacks . | . . . . . Repair Station Hacks . | . . . . . Recycling Unit Hacks . | . . . . . Scanalyzer . | . . . . . Garrison Access Hacks . | . . . . . Unauthorized Hacks . | . . . . . Terminals . | . . . . . Fabricators . | . . . . . Repair Stations . | . . . . . Recycling Units . | . . . . . Scanalyzers . | . . . . . Garrison Access . | . . . . . Data Cores Recovered . | . . . . . Used . | . . . . . Hacking Detections . | . . . . . Full Trace Events . | . . . . . Feedback Events . | . . . . . Feedback Blocked . | . . . . . Robot Schematics Acquired . | . . . . . Robots Built . | . . . . . Authchips . | . . . . . Time . | . . . . . Total Robot Build Rating . | . . . . . Part Schematics Acquired . | . . . . . Parts Built . | . . . . . Authchips . | . . . . . Time . | . . . . . Total Part Build Rating . | . . . . . Parts Repaired . | . . . . . Time . | . . . . . Parts Recycled . | . . . . . Recycled Matter . | . . . . . Retrieved Matter . | . . . . . Retrieved Components . | . . . . . Parts Scanalyzed . | . . . . . Part Schematics Acquired . | . . . . . Parts Damaged . | . . . . . Bothacking | -11 -10 -9 -8 -8 ------------ Run | Scr Mat Mat Mat Sto Used RIF Installer . | . . . . . Robots Hacked . | . . . . . Non-combat . | . . . . . Combat . | . . . . . Robot Hacks Applied . | . . . . . Relay Couplers Released . | . . . . . Fabnet Peak Effective % . | . . . . . Robots Rewired . | . . . . . Allies Hacked . | . . . . . Hacks Repelled . | . . . . . Allies | -11 -10 -9 -8 -8 -------- Run | Scr Mat Mat Mat Sto Total Allies . | . . . . . Largest Group . | . . . . . Highest-Rated Group . | . . . . . Highest-Rated Ally . | . . . . . Total Orders . | . . . . . Ally Attacks . | . . . . . Total Damage . | . . . . . Kills . | . . . . . Allies Corrupted . | . . . . . Allies Melted . | . . . . . Intel | -11 -10 -9 -8 -8 ------- Run | Scr Mat Mat Mat Sto Robot Analysis Total . | . . . . . Derelict Logs Recovered . | . . . . . Drone Launches . | . . . . . Drone Recoveries . | . . . . . Exploration | -11 -10 -9 -8 -8 ------------- Run | Scr Mat Mat Mat Sto Turns Passed 894 | 68 158 359 100 209 Spaces Moved 644 | 51 152 188 78 175 Core 128 | 9 . . . 119 Treads . | . . . . . Legs 322 | . . 188 78 56 Wheels 194 | 42 152 . . . Hover . | . . . . . Flight . | . . . . . Fastest Speed 50 | 50 80 120 120 50 Average Speed 97 | 100 84 120 120 74 Slowest Speed 200 | 200 90 120 120 130 Overloaded Moves . | . . . . . Propulsion Burnouts . | . . . . . Robots Hopped . | . . . . . Cave-ins Triggered . | . . . . . Exploration Rate (%) 20 | 3 34 17 10 39 Regions Visited 4 Branch Regions 1 Pre-discovered Areas . | . . . . . Known Exits Taken . | . . . . . Unknown Exits Taken 4 | 1 1 1 1 . Scrap Searched . | . . . . . Spaces Dug . | . . . . . Terrain Destroyed 20 | . . . . 20 Melee . | . . . . . Projectile . | . . . . . AOE 20 | . . . . 20 Terrain Rammed . | . . . . . Walls Destroyed . | . . . . . Machines Disabled . | . . . . . Actions | -11 -10 -9 -8 -8 --------- Run | Scr Mat Mat Mat Sto Total 852 | 64 167 317 83 221 Wait 119 | 4 1 114 . . Move 640 | 50 151 187 77 175 Hop . | . . . . . Pick Up 11 | 4 3 3 1 . Fast Attach 13 | 6 1 1 2 3 Attach 8 | . . 4 1 3 Detach 6 | . 1 2 1 2 Swap 2 | . . . . 2 Drop 5 | . 1 3 . 1 Fire 41 | . 7 3 . 31 Melee . | . . . . . Ram 2 | . 2 . . . Kick 5 | . . . 1 4 Crush . | . . . . . Escape Stasis . | . . . . . Rewire . | . . . . . Trap . | . . . . . Miscellaneous . | . . . . . Route ------- -11/Scrapyard -10/Materials -9/Materials -8/Materials -8/Storage History --------- Turn | Location | Event 8 | -11/Scrapyard | Discovered new exit (range 15) 69 | -11/Scrapyard | Entered Materials 186 | -10/Materials | Discovered new exit (range 16) 227 | -10/Materials | Entered another Materials area 227 | -9/Materials | Evolved 2 slots: Propulsion x2 305 | -9/Materials | Build established: Mutant 582 | -9/Materials | Discovered new exit (range 3) 586 | -9/Materials | Entered another Materials area 586 | -8/Materials | Evolved 2 slots: Power x1, Utility x1 668 | -8/Materials | Discovered new exit (range 14) 686 | -8/Materials | Entered Storage 725 | -8/Storage | Garrison activated, responded to threat 774 | -8/Storage | Core integrity fell below 50% 801 | -8/Storage | Lost 10 parts (1p4n2u3w) 847 | -8/Storage | Core integrity fell below 20% 895 | -8/Storage | Destroyed by G-47 Trooper with Particle Gun Last Messages --------------- 00847_ K-01 Serf collects debris. 00850_ Kicked Y-45 Defender. 00850_ K-01 Serf collects debris. 00851_ Kicked Y-45 Defender out of the way. 00852_ Hvy. Assault Rifle destroyed. 00853_ K-01 Serf collects debris. 00865_ Kicked A-02 Transporter. 00876_ W-25 Informer distress signal alerts nearby ally. 00878_ Kicked O-16 Technician out of the way. 00879_ U-05 Engineer lays Concrete. 00881_ Triggered Alarm Trap. 00881_ An alarm sounds. 00881_ ALERT: Alarm triggered, dispatching investigation squad. 00882_ U-05 Engineer lays Concrete. 00884_ Titanium Leg destroyed. 00885_ Critical hit (Burn: +37). 00886_ Titanium Leg destroyed. 00888_ W-25 Informer suffers critical hit (Burn). 00890_ K-01 Serf collects debris. 00890_ U-05 Engineer lays Concrete. Map ----- +----------------------------------------------------+ | ????????# ! | # [[ # | | ????????# % + [[ # | | ????????# # #####+########## | | ????????#######?# # #????? | | ????????????????# # "#???? | | ????????????????# # """ """ T#???? | | ?????????????#### # """ """ "#???? | | ?????????????+ + """ """ ##???? | | ?#???????????# # #????? | | ?# ??????????# # #????? | | ?# ?????????# + #????? | | ?# ?????????# #####+########????? | | ?? ????????# #???# #?######????? | | ??? ????????# #???# #? #????? | | ???? ?????### #???# # """ #????? | | ????#"######T# ##### # """ #????? | | ????# / """ #????? | | ????# # #????? | | ????# # ! #???? | | ????# #?"T"####???? | | ????#+## g #?"""#??????? | | ???????##g#### !! #?####??????? | | ????????# #??# [*[ #"""#???????? | | ????????# #??# * *! #"G"#???????? | | ????????#/####+ #+##+#" "####????? | | ????????#@ o[ ==# #????? | | ????????# """" * # #????? | | ????????# "** #????? | | ????????# """ ![[%""" """ #????? | | ????????# """ * # """ """ #????? | | ????????# "*]! # "" """ #????? | | ????????# "" = #????? | | ????????# = #????? | | ???????##### ###/#######??? | | ???????# | | ???????# | | ???????# | | ???????######"#########/########## | | ???????????#T ????????? ????????? | | ???????????###?????????? ???????? | | ?????????????????????????????????? | | ?????????????????????????????????? | | ?????????????????????????????????? | | ?????????????????????????????????? | | ?????????????????????????????????? | | | | | | | | | | | +----------------------------------------------------+ Best States ------------- Heat Dissipation 31 Energy Generation 19 Energy Capacity 390 Matter Stores 300 Matter Capacity 300 Sight Range 20 Terrain Scan Density 10 ECM Strength 1 Resistance: KI 20 Resistance: TH 20 Resistance: EX 20 Resistance: EM 20 Resistance: I 20 Resistance: S 20 Resistance: P 20 Evasion (%) 55 Offensive Hacking 10 Item Schematics ----------------- None Robot Schematics ------------------ None Fabricated ------------ Nothing Alien Tech Used ----------------- None Achievements -------------- None Challenges ------------ None Game ------ Seed KineticLegTrap Manual? 0 Play Time 00:14:48 Cumulative 74.0 hours Start 2022.08.13 @ 22:37:05 End 2022.08.13 @ 22:47:59 Sessions 1 Manual Loads 0 Difficulty Adventurer Special Mode None Game No. 52 Rogue 32 Adventurer 20 Explorer 0 Win Type - Total 0 Types 0/0/0/0/0/0/0/0/0 Lore% 16 Gallery% 36 Achievement% 18 Wizard Run 0 Options --------- ASCII 0 Keyboard 0 Movement Numpad Keybinds 0 Fullscreen 1 Font 24/Terminus Map View 76x50 Tactical HUD 1 Map Filters NONE Filters NONE Steam 1 RUN: a4fdac36-f8b4-426e-9b58-470baeab219d